fUSD/lending_fUSD_20240327
["ID","MTS","AMOUNT","RATE_DAILY","PERIOD"]
[320769859,1711552268809,-777.18,0.00054246,120]
[320769860,1711552268818,-1020.56,0.00054246,120]
[320769861,1711552268827,-676.35,0.00054246,120]
[320769862,1711552268836,-500.0,0.00054246,120]
[320769863,1711552268848,-2402.59,0.00054246,120]
[320769864,1711552268858,-151.0,0.00054246,120]
[320769865,1711552268867,-500.0,0.00054246,120]
[320769866,1711552268876,-506.03034806,0.00054246,120]
[320769867,1711552268886,-500.0,0.00054246,120]
[320769868,1711552268895,-946.71,0.00054246,120]
[320769869,1711552268905,-500.0,0.00054246,120]
[320769870,1711552268914,-500.0,0.00054246,120]
[320769871,1711552268923,-508.50986051,0.00054246,120]
[320769872,1711552268932,-600.3,0.00054246,120]
[320769873,1711552268941,-19785.32,0.00054246,120]
[320769874,1711552268950,-500.0,0.00054246,120]
[320769875,1711552268960,-13711.16,0.00054246,120]
[320769876,1711552268968,-500.0,0.00054246,120]
[320769877,1711552268978,-1967.91,0.00054246,120]
[320769878,1711552268986,-545.64339023,0.00054246,120]
[320769879,1711552268996,-521.12,0.00054246,120]
[320769880,1711552269005,-500.0,0.00054246,120]
[320769881,1711552269014,-500.0,0.00054246,120]
[320769882,1711552269023,-713.82,0.00054246,120]
[320769883,1711552269033,-500.0,0.00054246,120]
[320769884,1711552269044,-7966.15,0.00054246,120]
[320769885,1711552269056,-505.26300311,0.00054246,120]
[320769886,1711552269066,-2391.95,0.00054246,120]
[320769887,1711552269077,-513.89,0.00054246,120]
[320769888,1711552269086,-151.0,0.00054246,120]
[320769889,1711552269098,-500.0,0.00054246,120]
[320769890,1711552269106,-1733.83,0.00054246,120]
[320769891,1711552269117,-3864.42,0.00054246,120]
[320769892,1711552269126,-500.0,0.00054246,120]
[320769893,1711552269135,-5021.13,0.00054246,120]
[320769894,1711552269147,-500.0,0.00054246,120]
[320769895,1711552269158,-500.0,0.00054246,120]
[320769896,1711552269167,-3725.84,0.00054246,120]
[320769897,1711552269176,-557.01,0.00054246,120]
[320769898,1711552269185,-500.0,0.00054246,120]
[320769899,1711552269196,-500.0,0.00054246,120]
[320769900,1711552269205,-500.0,0.00054246,120]
[320769901,1711552269215,-500.0,0.00054246,120]
[320769902,1711552269224,-151.0,0.00054246,120]
[320769903,1711552269235,-500.0,0.00054246,120]
[320769904,1711552269245,-854.55,0.00054246,120]
[320769905,1711552269255,-500.0,0.00054246,120]
[320769906,1711552269265,-5189.9,0.00054246,120]
[320769907,1711552269275,-500.0,0.00054246,120]
[320769908,1711552269286,-500.0,0.00054246,120]
[320769909,1711552269295,-500.0,0.00054246,120]
[320769910,1711552269304,-2750.93,0.00054246,120]
[320769911,1711552269313,-267.712092,0.00054246,120]
[320769912,1711552269323,-500.0,0.00054246,7]
[320769913,1711552269333,-500.0,0.00054246,120]
[320769914,1711552269344,-868.26,0.00054246,120]
[320769915,1711552269353,-610.77,0.00054246,120]
[320769916,1711552269362,-500.0,0.00054246,120]
[320769917,1711552269372,-500.0,0.00054246,120]
[320769918,1711552269381,-6466.22,0.00054246,120]
[320769919,1711552269390,-1155.36,0.00054246,120]
[320769920,1711552269400,-500.0,0.00054246,120]
[320769922,1711552269410,-3526.88,0.00054246,120]
[320769923,1711552269419,-500.0,0.00054246,120]
[320769924,1711552269428,-830.3,0.00054246,120]
[320769925,1711552269438,-390.35571363,0.00054246,120]
[320769926,1711552269447,-500.0,0.00054246,120]
[320769927,1711552269456,-500.0,0.00054246,120]
[320769928,1711552269466,-5787.26,0.00054246,120]
[320769929,1711552269475,-506.84777645,0.00054246,120]
[320769930,1711552269484,-1378.1,0.00054246,120]
[320769931,1711552269492,-500.0,0.00054246,120]
[320769932,1711552269501,-500.0,0.00054246,120]
[320769933,1711552269511,-500.0,0.00054246,120]
[320769934,1711552269521,-740.71,0.00054246,120]
[320769935,1711552269530,-500.0,0.00054246,120]
[320769936,1711552269539,-500.0,0.00054246,120]
[320769937,1711552269550,-1329.35,0.00054246,120]
[320769938,1711552269559,-500.0,0.00054246,120]
[320769939,1711552269569,-211.5270709,0.00054246,120]
[320769940,1711552269579,-500.0,0.00054246,120]
[320769941,1711552269590,-500.0,0.00054246,120]
[320769942,1711552269599,-500.0,0.00054246,120]
[320769943,1711552269608,-912.03,0.00054246,120]
[320769944,1711552269617,-506.17629948,0.00054246,120]
[320769945,1711552269627,-500.0,0.00054246,120]
[320769946,1711552269635,-500.0,0.00054246,120]
[320769947,1711552269646,-151.0,0.00054246,120]
[320769948,1711552269656,-500.0,0.00054246,120]
[320769949,1711552269666,-614.99,0.00054246,120]
[320769950,1711552269676,-500.0,0.00054246,120]
[320769951,1711552269686,-500.0,0.00054246,120]
[320769952,1711552269695,-500.0,0.00054246,120]
[320769953,1711552269705,-500.0,0.00054246,120]
[320769954,1711552269715,-1956.03,0.00054246,120]
[320769955,1711552269725,-1720.56,0.00054246,120]
[320769956,1711552269735,-500.0,0.00054246,120]
[320769957,1711552269745,-7446.73,0.00054246,120]
[320769958,1711552269754,-500.0,0.00054246,120]
[320769959,1711552269764,-500.0,0.00054246,120]
[320769960,1711552269773,-1846.4,0.00054246,120]
[320769961,1711552269785,-2990.18,0.00054246,120]
[320769962,1711552269794,-500.0,0.00054246,120]
[320769963,1711552269804,-500.0,0.00054246,120]
[320769964,1711552269813,-500.0,0.00054246,120]
[320769965,1711552269822,-500.0,0.00054246,120]
[320769966,1711552269832,-500.0,0.00054246,120]
[320769967,1711552269845,-2259.51,0.00054246,120]
[320769968,1711552269855,-500.0,0.00054246,120]
[320769969,1711552269864,-500.0,0.00054246,120]
[320769970,1711552269875,-1421.21,0.00054246,120]
[320769971,1711552269884,-500.0,0.00054246,120]
[320769972,1711552269895,-923.61,0.00054246,120]
[320769973,1711552269906,-1528.65,0.00054246,120]
[320769974,1711552269916,-504.36836591,0.00054246,120]
[320769975,1711552269927,-500.0,0.00054246,120]
[320769976,1711552269937,-500.0,0.00054246,120]
[320769977,1711552269948,-500.0,0.00054246,120]
[320769978,1711552269958,-500.0,0.00054246,120]
[320769979,1711552269969,-2856.46,0.00054246,120]
[320769980,1711552269980,-502.26188049,0.00054246,120]
[320769981,1711552269991,-500.0,0.00054246,120]
[320769982,1711552270001,-500.0,0.00054246,120]
[320769983,1711552270012,-500.0,0.00054246,120]
[320769984,1711552270023,-500.0,0.00054246,2]
[320769985,1711552270033,-500.0,0.00054246,2]
[320769986,1711552270043,-500.0,0.00054246,120]
[320769987,1711552270053,-500.0,0.00054246,2]
[320769988,1711552270063,-740.94,0.00054246,120]
[320769989,1711552270073,-329.74935198,0.00054246,2]
[320769990,1711552270083,-500.0,0.00054246,120]
[320769991,1711552270098,-2557.22,0.00054246,120]
[320769992,1711552270108,-2685.69,0.00054246,120]
[320769993,1711552270117,-500.0,0.00054246,120]
[320769994,1711552270127,-500.0,0.00054246,120]
[320769995,1711552270138,-500.0,0.00054246,120]
[320769996,1711552270148,-505.70224571,0.00054246,120]
[320769997,1711552270158,-500.0,0.00054246,120]
[320769998,1711552270168,-500.0,0.00054246,120]
[320769999,1711552270178,-500.0,0.00054246,120]
[320770000,1711552270187,-1421.34,0.00054246,120]
[320770001,1711552270197,-500.0,0.00054246,120]
[320770002,1711552270208,-5443.98,0.00054246,120]
[320770003,1711552270218,-151.0,0.00054246,120]
[320770004,1711552270228,-500.0,0.00054246,120]
[320770005,1711552270238,-500.0,0.00054246,120]
[320770006,1711552270247,-656.67,0.00054246,120]
[320770007,1711552270257,-500.0,0.00054246,120]
[320770008,1711552270267,-1930.38,0.00054246,120]
[320770009,1711552270278,-2077.63,0.00054246,120]
[320770010,1711552270288,-1868.73,0.00054246,120]
[320770011,1711552270298,-500.0,0.00054246,120]
[320770012,1711552270308,-500.0,0.00054246,120]
[320770013,1711552270320,-366.16232355,0.00054246,120]
[320770014,1711552270330,-4425.6,0.00054246,120]
[320770015,1711552270344,-500.0,0.00054246,120]
[320770016,1711552270354,-843.98,0.00054246,120]
[320770017,1711552270365,-4736.7,0.00054246,120]
[320770018,1711552270375,-500.0,0.00054246,120]
[320770019,1711552270385,-151.0,0.00054246,120]
[320770020,1711552270395,-705.69,0.00054246,120]
[320770021,1711552270405,-9944.44,0.00054246,120]
[320770022,1711552270415,-500.0,0.00054246,120]
[320770023,1711552270424,-500.0,0.00054246,120]
[320770024,1711552270433,-522.85,0.00054246,120]
[320770025,1711552270442,-500.0,0.00054246,120]
[320770026,1711552270452,-5260.51,0.00054246,120]
[320770027,1711552270461,-500.0,0.00054246,120]
[320770028,1711552270471,-500.0,0.00054246,120]
[320770029,1711552270481,-1999.03,0.00054246,120]
[320770030,1711552270492,-2761.33,0.00054246,120]
[320770031,1711552270508,-500.0,0.00054246,120]
[320770032,1711552270518,-3298.55,0.00054246,120]
[320770033,1711552270528,-500.0,0.00054246,120]
[320770034,1711552270537,-151.0,0.00054246,120]
[320770035,1711552270547,-311.81559997,0.00054246,120]
[320770036,1711552270556,-500.0,0.00054246,120]
[320770037,1711552270565,-3433.57,0.00054246,120]
[320770038,1711552270574,-500.0,0.00054246,120]
[320770039,1711552270583,-500.0,0.00054246,120]
[320770040,1711552270595,-151.0,0.00054246,120]
[320770041,1711552270604,-674.52,0.00054246,120]
[320770042,1711552270613,-500.0,0.00054246,120]
[320770043,1711552270622,-1924.78,0.00054246,120]
[320770044,1711552270640,-500.0,0.00054246,120]
[320770045,1711552270651,-1052.23,0.00054246,120]
[320770046,1711552270661,-500.0,0.00054246,120]
[320770047,1711552270671,-500.0,0.00054246,120]
[320770048,1711552270681,-920.07,0.00054246,120]
[320770049,1711552270690,-716.38,0.00054246,120]
[320770050,1711552270699,-500.0,0.00054246,120]
[320770051,1711552270708,-762.89,0.00054246,120]
[320770052,1711552270717,-500.0,0.00054246,120]
[320770053,1711552270727,-2331.75,0.00054246,120]
[320770054,1711552270737,-500.0,0.00054246,120]
[320770055,1711552270747,-507.30642676,0.00054246,120]
[320770056,1711552270756,-500.0,0.00054246,120]
[320770057,1711552270765,-637.89,0.00054246,120]
[320770058,1711552270775,-2087.71,0.00054246,120]
[320770059,1711552270785,-2087.71,0.00054246,120]
[320770060,1711552270795,-2087.71,0.00054246,120]
[320770061,1711552270804,-2087.71,0.00054246,120]
[320770062,1711552270814,-1326.22,0.00054246,120]
[320770063,1711552270824,-2087.71,0.00054246,120]
[320770064,1711552270833,-6930.06,0.00054246,120]
[320770065,1711552270845,-2087.71,0.00054246,120]
[320770066,1711552270855,-1326.49,0.00054246,120]
[320770067,1711552270865,-2087.71,0.00054246,120]
[320770068,1711552270874,-2994.47,0.00054246,120]
[320770069,1711552270884,-2087.71,0.00054246,120]
[320770070,1711552270894,-2087.71,0.00054246,120]
[320770071,1711552270904,-1751.29,0.00054246,120]
[320770072,1711552270913,-2087.71,0.00054246,120]
[320770073,1711552270923,-500.0,0.00054246,120]
[320770074,1711552270933,-2087.71,0.00054246,120]
[320770075,1711552270942,-504.98812733,0.00054246,120]
[320770076,1711552270954,-4849.32,0.00054246,120]
[320770077,1711552270963,-2087.71,0.00054246,120]
[320770078,1711552270973,-2087.71,0.00054246,120]
[320770079,1711552270983,-3458.5,0.00054246,120]
[320770080,1711552270993,-2087.71,0.00054246,120]
[320770081,1711552271003,-2087.71,0.00054246,120]
[320770082,1711552271013,-500.0,0.00054246,120]
[320770083,1711552271023,-2087.71,0.00054246,120]
[320770084,1711552271033,-2087.71,0.00054246,120]
[320770085,1711552271042,-500.0,0.00054246,120]
[320770086,1711552271052,-500.0,0.00054246,120]
[320770087,1711552271061,-500.0,0.00054246,120]
[320770088,1711552271071,-500.0,0.00054246,120]
[320770089,1711552271080,-500.0,0.00054246,120]
[320770090,1711552271090,-504.12450359,0.00054246,120]
[320770091,1711552271099,-500.0,0.00054246,120]
[320770092,1711552271108,-578.16,0.00054246,120]
[320770093,1711552271118,-5491.15,0.00054246,120]
[320770094,1711552271127,-500.0,0.00054246,120]
[320770095,1711552271138,-502.21514206,0.00054246,120]
[320770096,1711552271148,-151.0,0.00054246,120]
[320770097,1711552271158,-791.99,0.00054246,120]
[320770098,1711552271167,-1803.3,0.00054246,120]
[320770099,1711552271177,-151.0,0.00054246,120]
[320770100,1711552271186,-500.0,0.00054246,120]
[320770101,1711552271195,-4863.65,0.00054246,120]
[320770102,1711552271205,-500.0,0.00054246,120]
[320770103,1711552271214,-500.0,0.00054246,120]
[320770104,1711552271225,-3700.31,0.00054246,120]
[320770105,1711552271235,-501.08634824,0.00054246,120]
[320770106,1711552271245,-151.0,0.00054246,120]
[320770107,1711552271254,-3753.98,0.00054246,120]
[320770108,1711552271264,-500.0,0.00054246,120]
[320770109,1711552271274,-500.0,0.00054246,120]
[320770110,1711552271284,-2615.55,0.00054246,120]
[320770111,1711552271293,-7859.4,0.00054246,120]
[320770112,1711552271303,-500.0,0.00054246,120]
[320770113,1711552271312,-500.0,0.00054246,120]
[320770114,1711552271322,-5481.35,0.00054246,120]
[320770115,1711552271332,-500.0,0.00054246,120]
[320770116,1711552271343,-500.0,0.00054246,120]
[320770117,1711552271352,-500.0,0.00054246,120]
[320770118,1711552271362,-7801.14,0.00054246,120]
[320770119,1711552271371,-151.0,0.00054246,30]
[320770120,1711552271381,-151.0,0.00054246,60]
[320770121,1711552271393,-809.39,0.00054246,120]
[320770122,1711552271545,-5544.82,0.00054246,120]
[320770123,1711552271562,-4750.48,0.00054246,120]
[320770124,1711552271572,-500.0,0.00054246,120]
[320770125,1711552271582,-503.02926145,0.00054246,120]
[320770126,1711552271592,-500.0,0.00054246,120]
[320770127,1711552271602,-500.0,0.00054246,120]
[320770128,1711552271612,-500.0,0.00054246,120]
[320770129,1711552271622,-500.0,0.00054246,120]
[320770130,1711552271631,-151.0,0.00054246,30]
[320770131,1711552271641,-500.0,0.00054246,120]
[320770132,1711552271651,-500.0,0.00054246,120]
[320770133,1711552271660,-1537.99,0.00054246,120]
[320770134,1711552271670,-500.0,0.00054246,120]
[320770135,1711552271680,-636.48,0.00054246,120]
[320770136,1711552271690,-2384.15,0.00054246,120]
[320770137,1711552271700,-6228.01,0.00054246,120]
[320770138,1711552271709,-6228.01,0.00054246,120]
[320770139,1711552271719,-6228.01,0.00054246,120]
[320770140,1711552271728,-6228.01,0.00054246,120]
[320770141,1711552271738,-6228.01,0.00054246,120]
[320770142,1711552271748,-6228.01,0.00054246,120]
[320770143,1711552271758,-500.0,0.00054246,120]
[320770144,1711552271768,-6228.01,0.00054246,120]
[320770145,1711552271778,-500.0,0.00054246,120]
[320770146,1711552271787,-6228.01,0.00054246,120]
[320770147,1711552271797,-2788.5,0.00054246,120]
[320770148,1711552271807,-6228.01,0.00054246,120]
[320770149,1711552271817,-6228.01,0.00054246,120]
[320770150,1711552271826,-363.00999784,0.00054246,120]
[320770151,1711552271835,-3517.88,0.00054246,120]
[320770152,1711552271848,-500.0,0.00054246,120]
[320770153,1711552271857,-6228.01,0.00054246,120]
[320770154,1711552271866,-6228.01,0.00054246,120]
[320770155,1711552271875,-500.0,0.00054246,120]
[320770156,1711552271885,-6228.01,0.00054246,120]
[320770157,1711552271894,-524.42,0.00054246,120]
[320770158,1711552271903,-500.0,0.00054246,120]
[320770159,1711552271913,-6228.01,0.00054246,120]
[320770160,1711552271922,-6228.01,0.00054246,120]
[320770161,1711552271932,-500.0,0.00054246,120]
[320770162,1711552271943,-6228.01,0.00054246,120]
[320770163,1711552271952,-6228.01,0.00054246,120]
[320770164,1711552271961,-6228.01,0.00054246,120]
[320770165,1711552271970,-6348.64,0.00054246,120]
[320770166,1711552271980,-6228.01,0.00054246,120]
[320770167,1711552271990,-6228.01,0.00054246,120]
[320770168,1711552271999,-6228.01,0.00054246,120]
[320770169,1711552272009,-500.0,0.00054246,120]
[320770170,1711552272019,-6228.01,0.00054246,120]
[320770171,1711552272028,-6228.01,0.00054246,120]
[320770172,1711552272037,-6228.04,0.00054246,120]
[320770173,1711552272046,-502.81584734,0.00054246,120]
[320770174,1711552272056,-500.0,0.00054246,120]
[320770175,1711552272066,-1000.0,0.00054246,14]
[320770176,1711552272076,-5338.01,0.00054246,120]
[320770177,1711552272086,-502.70366808,0.00054246,120]
[320770178,1711552272097,-502.53,0.00054246,120]
[320770179,1711552272107,-46611.7,0.00054246,120]
[320770180,1711552272117,-500.0,0.00054246,120]
[320770181,1711552272126,-400.0,0.00054246,60]
[320770182,1711552272138,-500.0,0.00054246,120]
[320770183,1711552272149,-500.0,0.00054246,120]
[320770184,1711552272163,-1812.5732,0.00054246,120]
[320770185,1711552272173,-6551.22,0.00054246,120]
[320770186,1711552272183,-2993.15,0.00054246,120]
[320770187,1711552272193,-500.0,0.00054246,120]
[320770188,1711552272202,-4817.18,0.00054246,120]
[320770189,1711552272211,-500.0,0.00054246,120]
[320770190,1711552272220,-500.0,0.00054246,120]
[320770191,1711552272231,-500.0,0.00054246,120]
[320770192,1711552272240,-1812.5732,0.00054246,120]
[320770193,1711552272250,-500.0,0.00054246,120]
[320770194,1711552272260,-400.0,0.00054246,60]
[320770195,1711552272270,-509.22269461,0.00054246,120]
[320770196,1711552272280,-500.0,0.00054246,120]
[320770197,1711552272290,-500.0,0.00054246,120]
[320770198,1711552272300,-501.54651134,0.00054246,120]
[320770199,1711552272309,-500.0,0.00054246,120]
[320770200,1711552272319,-502.74850219,0.00054246,120]
[320770201,1711552272329,-500.0,0.00054246,120]
[320770202,1711552272338,-588.6,0.00054246,120]
[320770203,1711552272348,-510.2247128,0.00054246,120]
[320770204,1711552272358,-3258.55,0.00054246,120]
[320770205,1711552272368,-544.03,0.00054246,7]
[320770206,1711552272377,-790.01,0.00054246,120]
[320770207,1711552272386,-500.0,0.00054246,120]
[320770208,1711552272396,-4679.9,0.00054246,120]
[320770209,1711552272405,-500.0,0.00054246,120]
[320770210,1711552272414,-7540.37,0.00054246,120]
[320770211,1711552272424,-2709.0,0.00054246,120]
[320770212,1711552272433,-500.0,0.00054246,120]
[320770213,1711552272442,-500.0,0.00054246,120]
[320770214,1711552272451,-4773.75,0.00054246,120]
[320770215,1711552272461,-619.36,0.00054246,120]
[320770216,1711552272470,-500.0,0.00054246,120]
[320770217,1711552272480,-1268.52,0.00054246,120]
[320770218,1711552272489,-500.0,0.00054246,120]
[320770219,1711552272498,-500.0,0.00054246,120]
[320770220,1711552272507,-506.2035238,0.00054246,120]
[320770221,1711552272517,-500.0,0.00054246,120]
[320770222,1711552272527,-500.0,0.00054246,120]
[320770223,1711552272536,-656.64,0.00054246,120]
[320770224,1711552272545,-500.0,0.00054246,120]
[320770225,1711552272554,-175.021441,0.00054246,120]
[320770226,1711552272563,-500.0,0.00054246,120]
[320770227,1711552272573,-2451.24,0.00054246,120]
[320770228,1711552272582,-17944.07,0.00054246,120]
[320770229,1711552272593,-2517.77,0.00054246,120]
[320770230,1711552272602,-500.0,0.00054246,120]
[320770231,1711552272611,-2563.28,0.00054246,120]
[320770232,1711552272621,-7703.39,0.00054246,120]
[320770233,1711552272632,-3303.37,0.00054246,120]
[320770234,1711552272641,-500.0,0.00054246,120]
[320770235,1711552272651,-175.021441,0.00054246,120]
[320770236,1711552272662,-1186.07,0.00054246,120]
[320770237,1711552272671,-151.0,0.00054246,120]
[320770238,1711552272680,-1270.17,0.00054246,120]
[320770239,1711552272689,-500.0,0.00054246,120]
[320770240,1711552272699,-1889.21,0.00054246,120]
[320770241,1711552272708,-500.0,0.00054246,120]
[320770242,1711552272718,-500.0,0.00054246,120]
[320770243,1711552272726,-500.0,0.00054246,120]
[320770244,1711552272736,-500.0,0.00054246,65]
[320770245,1711552272745,-500.0,0.00054246,120]
[320770246,1711552272755,-500.0,0.00054246,120]
[320770247,1711552272764,-500.0,0.00054246,120]
[320770248,1711552272774,-501.06202978,0.00054246,120]
[320770249,1711552272783,-1681.35,0.00054246,120]
[320770250,1711552272792,-1917.53,0.00054246,120]
[320770251,1711552272802,-447.17091126,0.00054246,120]
[320770252,1711552272811,-500.0,0.00054246,120]
[320770253,1711552272821,-500.0,0.00054246,120]
[320770254,1711552272830,-500.0,0.00054246,120]
[320770255,1711552272841,-1300.91,0.00054246,120]
[320770256,1711552272851,-2725.85,0.00054246,120]
[320770257,1711552272860,-500.0,0.00054246,120]
[320770258,1711552272870,-510.76,0.00054246,120]
[320770259,1711552272879,-500.0,0.00054246,120]
[320770260,1711552272888,-1459.89,0.00054246,120]
[320770261,1711552272898,-502.83670904,0.00054246,120]
[320770262,1711552272907,-500.0,0.00054246,120]
[320770263,1711552272916,-1083.16,0.00054246,120]
[320770264,1711552272925,-500.0,0.00054246,120]
[320770265,1711552272934,-500.0,0.00054246,2]
[320770266,1711552272944,-2263.9,0.00054246,120]
[320770267,1711552272954,-243.89903277,0.00054246,120]
[320770268,1711552272962,-500.0,0.00054246,120]
[320770269,1711552272972,-500.0,0.00054246,120]
[320770270,1711552272981,-163.67154032,0.00054246,120]
[320770271,1711552272991,-503.09458598,0.00054246,120]
[320770272,1711552273001,-151.0,0.00054246,120]
[320770273,1711552273014,-500.0,0.00054246,120]
[320770274,1711552273023,-1066.83,0.00054246,120]
[320770275,1711552273033,-13499.81,0.00054246,21]
[320770276,1711552273043,-500.0,0.00054246,120]
[320770277,1711552273053,-1275.6,0.00054246,120]
[320770278,1711552273062,-500.0,0.00054246,120]
[320770279,1711552273071,-500.0,0.00054246,120]
[320770280,1711552273081,-500.0,0.00054246,120]
[320770281,1711552273091,-2742.55,0.00054246,120]
[320770282,1711552273100,-303.84855611,0.00054246,120]
[320770283,1711552273109,-931.65,0.00054246,120]
[320770284,1711552273119,-500.0,0.00054246,120]
[320770285,1711552273127,-503.32996956,0.00054246,120]
[320770286,1711552273137,-500.49884978,0.00054246,120]
[320770287,1711552273147,-270.57142293,0.00054246,120]
[320770288,1711552273159,-503.56310164,0.00054246,120]
[320770289,1711552273169,-501.28894948,0.00054246,120]
[320770290,1711552273179,-500.0,0.00054246,120]
[320770291,1711552273191,-906.98,0.00054246,120]
[320770292,1711552273201,-2754.43,0.00054246,120]
[320770293,1711552273211,-500.0,0.00054246,120]
[320770294,1711552273223,-500.91210151,0.00054246,2]
[320770295,1711552273235,-502.00463655,0.00054246,120]
[320770296,1711552273246,-500.0,0.00054246,120]
[320770297,1711552273256,-500.0,0.00054246,120]
[320770298,1711552273266,-500.0,0.00054246,120]
[320770299,1711552273276,-500.0,0.00054246,120]
[320770300,1711552273286,-816.77915,0.00054246,120]
[320770301,1711552273295,-630.97113868,0.00054246,120]
[320770302,1711552273304,-5979.51,0.00054246,120]
[320770303,1711552273313,-1262.28,0.00054246,120]
[320770304,1711552273323,-3157.95,0.00054246,120]
[320770305,1711552273333,-169.848593,0.00054246,120]
[320770306,1711552273344,-3209.92,0.00054246,120]
[320770307,1711552273353,-500.0,0.00054246,120]
[320770308,1711552273363,-500.0,0.00054246,120]
[320770309,1711552273372,-816.77915,0.00054246,120]
[320770310,1711552273381,-500.0,0.00054246,2]
[320770311,1711552273391,-9792.16,0.00054246,120]
[320770312,1711552273400,-539.64,0.00054246,120]
[320770313,1711552273411,-543.98361348,0.00054246,120]
[320770314,1711552273421,-1215.29,0.00054246,120]
[320770315,1711552273431,-503.33761584,0.00054246,120]
[320770316,1711552273440,-500.0,0.00054246,120]
[320770317,1711552273449,-500.0,0.00054246,120]
[320770318,1711552273458,-500.0,0.00054246,120]
[320770319,1711552273468,-151.0,0.00054246,120]
[320770320,1711552273478,-502.73657627,0.00054246,120]
[320770321,1711552273487,-532.68,0.00054246,120]
[320770322,1711552273497,-156.48219575,0.0005426,60]
[320770323,1711552273506,-1500.0,0.00054266,7]
[320770324,1711552273516,-150.0,0.00054272,14]
[320770325,1711552273528,-150.0,0.00054275,7]
[320770326,1711552273537,-150.0,0.00054277,7]
[320770327,1711552273547,-200.0,0.0005428,30]
[320770328,1711552273557,-208.0,0.0005428,30]
[320770329,1711552273570,-150.0,0.0005429,7]
[320770330,1711552273580,-154.47608907,0.00054297,60]
[320770331,1711552273591,-2500.0,0.000543,120]
[320770332,1711552273602,-150.0,0.0005431,7]
[320770333,1711552273611,-158.94982111,0.00054317,60]
[320770334,1711552273622,-200.0,0.00054321,2]
[320770335,1711552273632,-150.0,0.00054321,7]
[320770336,1711552273642,-150.0,0.00054324,7]
[320770337,1711552273651,-150.0,0.00054333,60]
[320770338,1711552273661,-150.0,0.00054357,7]
[320770339,1711552273671,-5000.0,0.00054368,2]
[320770340,1711552273681,-150.0,0.00054374,7]
[320770341,1711552273691,-150.0,0.00054397,7]
[320770342,1711552273701,-150.0,0.00054399,7]
[320770343,1711552273711,-2500.0,0.000544,120]
[320770344,1711552273721,-1000.0,0.000544,7]
[320770345,1711552273731,-1813.0,0.000544,7]
[320770346,1711552273741,-150.0,0.00054401,7]
[320770347,1711552273750,-150.0,0.00054409,7]
[320770348,1711552273760,-176.38003508,0.0005442,100]
[320770349,1711552273770,-1511.44406077,0.0005442,14]
[320770350,1711552273779,-154.78248493,0.00054432,60]
[320770351,1711552273789,-212.55588251,0.00054435,60]
[320770352,1711552273798,-1500.0,0.0005444,7]
[320770353,1711552273807,-154.78248493,0.00054443,60]
[320770354,1711552273817,-1500.0,0.0005445,7]
[320770355,1711552273826,-151.55177306,0.00054454,60]
[320770356,1711552273836,-150.0,0.00054455,7]
[320770357,1711552273847,-150.0,0.00054457,7]
[320770358,1711552273856,-150.0,0.00054458,7]
[320770359,1711552273866,-844.74,0.00054466,120]